Cogmind - Beta 16.1 @@@ ROGUE MODE // 2026.04.09 @ 23:41:01 Player: shreknel Result: Destroyed by as-13445 with Assembled F-torch Performance ------------- Evolutions (0) 0 Regions Visited (2) 400 Robots Destroyed (4) 20 Value Destroyed (46) 46 Prototype IDs (0) 0 Alien Tech Used (0) 0 Bonus (0) 0 TOTAL SCORE: 466 Bonus ------- None Cogmind --------- Core Integrity 0/250 Matter 241/300 Energy 77/100 System Corruption 1% Temperature Cool (45) Movement Treading (160) Location -10/Mines Parts ------- > --- POWER (1) -------- (None) > --- PROPULSION (2) --- Light Treads > --- UTILITY (2) ------ Medium Storage Unit Visual Processing Unit > --- WEAPON (2) ------- Light Assault Rifle Light Assault Rifle > --- INVENTORY (10) --- Light Treads Medium Storage Unit Large Storage Unit Medium Matter Pod (100) Small Laser Small Laser Peak State ------------ > --- POWER ------------ Light Ion Engine > --- PROPULSION ------- Aluminum Leg Aluminum Leg > --- UTILITY ---------- Medium Storage Unit Visual Processing Unit > --- WEAPON ----------- EM Pulse Gun Small Laser > --- INVENTORY -------- Light Ion Engine Light Treads Light Treads Small Storage Unit Small Storage Unit Medium Storage Unit Large Storage Unit Medium Matter Pod Small Laser Light Assault Rifle [Rating: 9] Favorites ----------- Power Light Ion Engine Engine Light Ion Engine Propulsion Aluminum Leg Treads Light Treads Leg Aluminum Leg Utility Medium Storage Unit Storage Medium Storage Unit Processor Visual Processing Unit Weapon Small Laser Energy Gun Small Laser Ballistic Gun Light Assault Rifle Launcher Grenade Launcher Build | -11 -10 -10 ------- Run | Yrd Mat Min Slots Evolved . | . . . Power . | . . . Propulsion . | . . . Utility . | . . . Weapon . | . . . Parts Attached 14 | 6 3 5 Power 2 | 1 . 1 Engine 2 | 1 . 1 Core . | . . . Reactor . | . . . Propulsion 3 | 2 . 1 Treads 1 | . . 1 Leg 2 | 2 . . Wheel . | . . . Hover . | . . . Flight . | . . . Utility 3 | 1 2 . Device . | . . . Storage 2 | 1 1 . Processor 1 | . 1 . Hackware . | . . . Protection . | . . . Artifact . | . . . Weapon 6 | 2 1 3 Energy Gun 3 | 2 1 . Energy Cannon . | . . . Ballistic Gun 2 | . . 2 Ballistic Cannon . | . . . Launcher 1 | . . 1 Special Weapon . | . . . Impact Weapon . | . . . Slashing Weapon . | . . . Piercing Weapon . | . . . Special Melee Weapon . | . . . Unidentified Prototypes . | . . . Parts Lost 6 | . . 6 Power 2 | . . 2 Propulsion 2 | . . 2 Utility . | . . . Weapon 2 | . . 2 Highest Loss Streak 5 | . . 5 To Critical Strikes . | . . . Average Backups 8 | 1 9 9 Power . | . 1 . Propulsion 1 | . 2 1 Utility 4 | . 4 3 Weapon 1 | . 1 3 Tool/Special . | . . . Unused Backups 8 | . 1 7 Power . | . . . Propulsion 1 | . . 1 Utility 6 | . 1 5 Weapon 1 | . . 1 Tool/Special . | . . . Average Slot Usage (%) 98 | . 99 94 Engine 13 | . 14 10 Leg 27 | . 28 25 Storage 22 | . 25 14 Processor 4 | . 2 14 Energy Gun 25 | . 28 16 Ballistic Gun 2 | . . 9 Peak Build Rating 9 | 6 9 9 Average Rating 7 | 4 7 8 On Entrance 5 | . 6 9 Avg Prop Armor Cover (%) . | . . . Naked Turns . | . . . Heaviest Build 21 | 11 21 16 Greatest Support 20 | 20 20 20 Greatest Overweight (x) 1 | . 1 . Average Overweight (x) . | . . . Largest Inventory Capacity 10 | 8 10 10 Average Capacity 9 | 7 9 10 Most Carried 10 | 4 10 10 Average Carried 8 | 1 9 9 Final Capacity 10 | 8 10 10 Final Carried 10 | 4 10 6 Class Distribution -------------------- 100% | Mutant Dominant Class ---------------- Mutant | -10/Materials Mutant | -10/Mines Resources | -11 -10 -10 ----------- Run | Yrd Mat Min Matter Collected 416 | 234 92 90 Remotely . | . . . Salvage Created 83 | . 72 11 Parts 8 | . 8 . Haulers Intercepted . | . . . Recyclers Shooed . | . . . Parts Field Recycled . | . . . Retrieved Matter . | . . . Parts Self-Destructed . | . . . Prevented . | . . . Parts Restored . | . . . Kills | -11 -10 -10 ------- Run | Yrd Mat Min Combat Hostiles Destroyed 4 | . 3 1 Guns 3 | . 3 . AOE 1 | . . 1 Classes Destroyed 3 | . 2 1 Watcher 1 | . 1 . Swarmer 3 | . 3 . Assembled 1 | . . 1 Best Kill Streak 3 | . 3 1 Combat Bots Only 3 | . 3 1 Max Kills in Single Turn 1 | . 1 1 Gunslinging . | . . . Exploded 1 | . . 1 Melee . | . . . Uniques/NPCs Destroyed . | . . . Combat | -11 -10 -10 -------- Run | Yrd Mat Min Hostile Shots Fired 75 | . 11 64 Missed 27 | . 1 26 Hits 48 | . 10 38 Melee 15 | . . 15 Projectile 33 | . 10 23 Critical Strikes 1 | . . 1 Part Disruptions 1 | . . 1 Damage Taken 850 | . 79 771 Core 256 | . 7 249 Absorbed by Shields . | . . . Core Remaining (%) 100 | 100 . . Volleys Fired 18 | . 7 11 Largest 2 | . 2 2 Hottest 80 | . 80 70 Shots Fired 34 | . 14 20 Gun 31 | . 14 17 Cannon . | . . . Launcher 3 | . . 3 Special . | . . . Kinetic 6 | . . 6 Thermal 18 | . 7 11 Explosive 3 | . . 3 Electromagnetic 7 | . 7 . Robot Hit Streak 2 | . 2 2 Robot Miss Streak 2 | . 2 2 Penetration Max . | . . . Secondary Targets 2 | . 2 . Max Gunslinging Chain 1 | . 1 . Shots Hit Robots 13 | . 7 6 Core Hits 18 | . 4 14 Critical Kills . | . . . Critical Parts Destroyed . | . . . Critical Strikes . | . . . Melee Attacks . | . . . Impact . | . . . Slashing . | . . . Piercing . | . . . Sneak Attacks . | . . . Combat Hostiles . | . . . Follow-up Attacks . | . . . Damage Inflicted 430 | . 92 338 Guns 160 | . 91 69 Cannons . | . . . Explosions 269 | . . 269 Melee . | . . . Ramming 1 | . 1 . Kinetic 14 | . . 14 Thermal 91 | . 36 55 Explosive 269 | . . 269 Electromagnetic 55 | . 55 . Impact . | . . . Slashing . | . . . Piercing . | . . . Highest Corruption 1 | . . 1 Average Corruption 1 | . . 1 Corruption Purged . | . . . Corruption Blocked . | . . . Overload Shots . | . . . Overflow Damage . | . . . Projectiles . | . . . Explosions . | . . . Melee . | . . . Knockbacks . | . . . Impact . | . . . Kinetic . | . . . Secondary . | . . . Self-Inflicted Damage 9 | . . 9 Shots 1 | . . 1 Rammed . | . . . Targets Rammed 1 | . 1 . Kicked 1 | . 1 . Crushed . | . . . Highest Temperature 90 | . 90 50 Average Temperature 31 | . 39 20 Received Heat Transfer 140 | . . 140 Siege Activations . | . . . Martial Activations . | . . . Shielding Activations . | . . . Robots Disrupted . | . . . Combat Hostiles . | . . . Robots Corrupted . | . . . Combat Hostiles . | . . . Parts Fried . | . . . Impact Corruptions . | . . . Robots Melted . | . . . Combat Hostiles . | . . . Parts Melted . | . . . Heat Transferred 200 | . 75 125 Parts Sabotaged . | . . . Parts Stolen . | . . . Parts Stripped . | . . . Power Chain Reactions . | . . . Alert | -11 -10 -10 ------- Run | Yrd Mat Min Maximum Alert Level . | . . . Low Security (%) 100 | 100 100 100 Level 1 . | . . . Level 2 . | . . . Level 3 . | . . . Level 4 . | . . . Level 5 . | . . . High Security . | . . . Max Security . | . . . Peak Influence 62 | . 62 17 Initial 4 | . . 4 Average 8 | . 11 1 Influence Increases 98 | . 81 17 Destroy 0b10 Robot/C 60 | . 60 . Destroy 0b10 Robot/NC 5 | . 5 . Destroy Leader 12 | . 12 . Successful Hack 4 | . 4 . Destroy Structure 17 | . . 17 Influence Decreases 98 | . 68 30 Entered New Map 9 | . . 9 Time Decay 82 | . 68 14 Lost Part 7 | . . 7 Squads Dispatched . | . . . Investigation . | . . . Extermination . | . . . Reinforcement . | . . . Assault . | . . . Garrison . | . . . Intercept . | . . . Searches Triggered . | . . . Construction Impeded . | . . . Haulers Reinforced . | . . . Active Scanning Responses . | . . . Cargo Convoy Interrupts . | . . . Stealth | -11 -10 -10 --------- Run | Yrd Mat Min Distress Signals . | . . . Communications Jammed . | . . . Distress Signals . | . . . Times Spotted 20 | . 8 12 Peak Tracking Total 10 | . 3 10 Tactical Retreats 1 | . . 1 Traps | -11 -10 -10 ------- Run | Yrd Mat Min Traps Triggered . | . . . Indirectly . | . . . Trap Hack Attempts . | . . . Triggered . | . . . Disarmed . | . . . Reprogrammed . | . . . Reused . | . . . Traps Extracted . | . . . Installed . | . . . Triggered . | . . . Machines | -11 -10 -10 ---------- Run | Yrd Mat Min Machines Disabled . | . . . Max in Single Turn . | . . . Machines Repaired . | . . . Machines Dismantled . | . . . Machines Sabotaged . | . . . Overloaded Fab Kills . | . . . Hacking | -11 -10 -10 --------- Run | Yrd Mat Min Machines Accessed 4 | . 4 . Terminals 1 | . 1 . Fabricators . | . . . Repair Stations 1 | . 1 . Recycling Units 2 | . 2 . Scanalyzers . | . . . Garrison Access . | . . . Total Hacks 7 | . 7 . Successful 4 | . 4 . Failed 3 | . 3 . Catastrophic . | . . . Database Lockouts . | . . . Manual . | . . . Terminals 3 | . 3 . Fabricators . | . . . Repair Stations 2 | . 2 . Recycling Units 2 | . 2 . Scanalyzers . | . . . Garrison Access . | . . . Terminal Hacks 2 | . 2 . Emergency Access Points 1 | . 1 . Locate Traps 1 | . 1 . Fabricator Hacks . | . . . Repair Station Hacks 1 | . 1 . Scan Component 1 | . 1 . Recycling Unit Hacks 1 | . 1 . Report Inventory 1 | . 1 . Scanalyzer . | . . . Garrison Access Hacks . | . . . Unauthorized Hacks . | . . . Terminals . | . . . Fabricators . | . . . Repair Stations . | . . . Recycling Units . | . . . Scanalyzers . | . . . Garrison Access . | . . . Data Cores Recovered . | . . . Used . | . . . Hacking Detections 2 | . 2 . Full Trace Events . | . . . Feedback Events . | . . . Feedback Blocked . | . . . Robot Schematics Acquired . | . . . Robots Built . | . . . Authchips . | . . . Time . | . . . Total Robot Build Rating . | . . . Part Schematics Acquired . | . . . Parts Built . | . . . Authchips . | . . . Time . | . . . Total Part Build Rating . | . . . Part Studies Acquired . | . . . Parts Repaired . | . . . Time . | . . . Parts Recycled . | . . . Recycled Matter . | . . . Retrieved Matter . | . . . Retrieved Components . | . . . Parts Scanalyzed . | . . . Part Schematics Acquired . | . . . Parts Damaged . | . . . Bothacking | -11 -10 -10 ------------ Run | Yrd Mat Min Used RIF Installer . | . . . Robots Hacked . | . . . Non-combat . | . . . Combat . | . . . Robot Hacks Applied . | . . . Relay Couplers Released . | . . . Fabnet Peak Effective % . | . . . Robots Rewired . | . . . Allies Hacked . | . . . Hacks Repelled . | . . . Allies | -11 -10 -10 -------- Run | Yrd Mat Min Total Allies . | . . . Largest Group . | . . . Highest-Rated Group . | . . . Highest-Rated Ally . | . . . Total Orders . | . . . Ally Attacks . | . . . Total Damage . | . . . Kills . | . . . Allies Corrupted . | . . . Allies Melted . | . . . Intel | -11 -10 -10 ------- Run | Yrd Mat Min Active Infowar (turns) 241 | . 82 159 Optics 241 | . 82 159 Robot Analysis Total . | . . . Derelict Logs Recovered . | . . . Drone Launches . | . . . Drone Recoveries . | . . . Exploration | -11 -10 -10 ------------- Run | Yrd Mat Min Turns Passed 771 | 60 552 159 Spaces Moved 411 | 41 277 93 Core 5 | 5 . . Treads 3 | . . 3 Legs 403 | 36 277 90 Wheels . | . . . Hover . | . . . Flight . | . . . Fastest Speed 50 | 50 120 120 Average Speed 155 | 111 173 121 Slowest Speed 190 | 120 190 160 Overloaded Moves . | . . . Propulsion Burnouts . | . . . Robots Hopped . | . . . Potential Cave-ins . | . . . Cave-ins Triggered . | . . . Exploration Rate (%) 24 | 3 38 31 Regions Visited 2 Branch Regions 1 Pre-discovered Areas 1 | . . 1 Known Exits Taken . | . . . Unknown Exits Taken 2 | 1 1 . Scrap Searched 1 | . . 1 Spaces Dug . | . . . Terrain Destroyed 23 | . . 23 Melee . | . . . Projectile . | . . . AOE 23 | . . 23 Terrain Rammed . | . . . Walls Destroyed . | . . . Machines Disabled . | . . . Actions | -11 -10 -10 --------- Run | Yrd Mat Min Total 506 | 52 333 121 Wait 40 | 2 32 6 Move 409 | 40 276 93 Hop . | . . . Pick Up 16 | 4 10 2 Fast Attach 8 | 6 1 1 Attach 5 | . 1 4 Detach . | . . . Swap 2 | . 1 1 Drop 7 | . 4 3 Fire 18 | . 7 11 Melee . | . . . Ram . | . . . Kick 1 | . 1 . Crush . | . . . Escape Stasis . | . . . Rewire . | . . . Trap . | . . . Miscellaneous . | . . . Route ------- -11/Scrapyard -10/Materials -10/Mines History --------- Turn | Location | Event 4 | -11/Scrapyard | Discovered new exit (range 16) 61 | -11/Scrapyard | Entered Materials 318 | -10/Materials | Build established: Mutant 360 | -10/Materials | Discovered new exit (range 6) 613 | -10/Materials | Entered Mines 664 | -10/Mines | Assembled infested the area 668 | -10/Mines | YI-UF0 nonchalantly dropped a Grenade Launcher on the ground 669 | -10/Mines | Assisted by a Guerilla fighting off Assembled 744 | -10/Mines | Learned location of Storage (-9) 757 | -10/Mines | Core integrity fell below 50% 770 | -10/Mines | Core integrity fell below 20% 772 | -10/Mines | Destroyed by as-13445 with Assembled F-torch Last Messages --------------- any of them following you? I'm here trying to lose some heat after our second raid on Storage failed. Whatever you do stay away from that place, they've tightened security following our previous successful raids." World map updated: -9/Storage. 00744_ as-32913 destroyed. 00748_ JJ-71R(g): "We scattered so the Unaware couldn't effectively use their advantage in numbers, and I suggest you do the same." 00748_ JJ-71R(g) slips back into the shadows. 00751_ The unstable cave ceiling collapses. 00752_ as-06781 destroyed. 00755_ Grenade Launcher destroyed. 00755_ System corrupted by crushing effect (+1). 00755_ Knocked back. 00759_ Aluminum Leg destroyed. 00763_ Lgt. Ion Engine destroyed. 00765_ as-02923 destroyed. 00771_ Sml. Laser destroyed. Map ----- +----------------------------------------------------+ | ????????????????????###### ????????????????? | | ?????????????????????????# ???????????????# | | ????????????????????????## # ?????????????## | | ????????????????????????# % ???????????## | | ?????????????????????????# = #?????????## | | ?????????????????????????# ####?????# # | | ????????????????????????## # #????# ! #? | | ????????????????????????# ##?## #?? | | ????????????????????????# ## ## #?? | | ????????????????????????## #?### #?? | | ?????????????????????????###????## #?? | | ?????????????????????????????????# #?? | | ?????????????????????????????????# ## ##?? | | ?????????????????????????????????## ### #??? | | ??????????????????????????????????## #?# #??? | | ???????????????????????????????????## #?# #??? | | ????????????????????????????????????# ##?# #??? | | ?????????????????????????????????????# ##### #??? | | ?????????????????????????????????????# ## #??? | | ??????????????????????##?????????????# ## #####??? | | ?????????????????????## #???????????## ## #??????? | | ?????????????????????# ####???????# #??????? | | ?????????????????????# ##??????# ####??????? | | ??????????????????????# ##?????# #?????????? | | ???????????????????????# aaa ##????# #??###????? | | ????????????????????????#@a%a ##???# ## ####?? | | ????????????????????????### a #???# % | | ??????????????????????????## ##?## # ## #? | | ???????????????????????????## ### #??####???? | | ????????????????????????????# ????????? | | ????????????????????????????# %% #???????? | | ????????????????????????????# #???????? | | ????????????????????????????# ##???????? | | ????????????????????????????# ###????????? | | ????????????????????????????## #?????????? | | ?????????????????????????????#### #?????????? | | ????????????????????????????????## #?????????? | | ?????????????????????????????????## #?????????? | | ??????????????????????????????????# #?????????? | | ??????????????????????????????????# #?????????? | | ??????????????????????????????????# #?????????? | | ??????????????????????????????????## ##?????????? | | ????????????????????????????????????###??????????? | | ?????????????????????????????????????????????????? | | ?????????????????????????????????????????????????? | | | | | | | | | | | +----------------------------------------------------+ Best States ------------- Heat Dissipation 25 Energy Generation 10 Energy Capacity 125 Matter Stores 300 Matter Capacity 300 Sight Range 18 Terrain Scan Density 10 Evasion (%) 55 Recoil Reduction 1 Item Schematics ----------------- None Robot Schematics ------------------ None Fabricated ------------ Nothing Repaired ---------- Nothing Studied --------- None Alien Tech Used ----------------- None Achievements -------------- None Challenges ------------ None Game ------ Seed FlightControlMicrothruster Manual? 0 Play Time 00:15:02 Cumulative 25.0 hours Start 2026.04.09 @ 23:27:42 End 2026.04.09 @ 23:41:01 Sessions 1 Manual Loads 0 Difficulty Rogue Special Mode None Game No. 17 Rogue 17 Adventurer 0 Explorer 0 Win Type - Total 0 Types 0/0/0/0/0/0/0/0/0/0 Lore% 12 Gallery% 17 Achievement% 16 Wizard Run 0 Options --------- Layout 1 ASCII 0 Keyboard 1 Movement Numpad Keybinds 0 Fullscreen 1 Font 16/Terminus Map View 50x40 Zoom Use 0% Tactical HUD 1 Map Filters NONE Filters NONE Steam SD RUN: f4c04bc8-a433-43fb-b4fb-4af598eb049f